fUST/lending_fUST_20260109
["ID","MTS","AMOUNT","RATE_DAILY","PERIOD"]
[401077558,1767906645599,-3000.0,0.0002998,2]
[401077562,1767906645608,-160.0,0.00029982,5]
[401077566,1767906645619,-3000.0,0.0002999,2]
[401077569,1767906645628,-3000.0,0.0003,2]
[401077571,1767906645638,-1041.66666667,0.0003,30]
[401077573,1767906645649,-1041.66666667,0.0003,7]
[401077575,1767906645659,-1098.76,0.0003,30]
[401077577,1767906645670,-446.0,0.0003,14]
[401077579,1767906645679,-749.42891218,0.00030005,2]
[401077581,1767906645689,-3000.0,0.0003001,2]
[401077583,1767906645698,-800.0,0.00030017,2]
[401077585,1767906645709,-800.0,0.00030017,2]
[401077588,1767906645719,-381.0,0.00030019,7]
[401077590,1767906645730,-3000.0,0.0003002,2]
[401077592,1767906645741,-800.0,0.00030025,2]
[401077594,1767906645752,-800.0,0.00030028,2]
[401077615,1767906645937,-3000.0,0.0003003,2]
[401077617,1767906645947,-800.0,0.00030034,2]
[401077619,1767906645956,-3000.0,0.0003004,2]
[401077621,1767906645966,-800.0,0.00030042,2]
[401077623,1767906645975,-900.0,0.00030043,7]
[401077625,1767906645985,-900.0,0.00030045,7]
[401077627,1767906645995,-3000.0,0.0003005,2]
[401077629,1767906646005,-1000.0,0.0003005,14]
[401077631,1767906646014,-167.94341584,0.0003005,14]
[401077633,1767906646024,-151.0,0.0003005,14]
[401077635,1767906646034,-381.0,0.00030053,2]
[401077637,1767906646044,-3000.0,0.0003006,2]
[401077639,1767906646057,-1098.76,0.0003006,30]
[401077641,1767906646077,-800.0,0.00030065,2]
[401077643,1767906646092,-3000.0,0.0003007,2]
[401077645,1767906646102,-1000.0,0.00030079,14]
[401077647,1767906646112,-3000.0,0.0003008,2]
[401077649,1767906646121,-3000.0,0.0003009,2]
[401077651,1767906646131,-151.0,0.00030093,14]
[401077653,1767906646142,-3000.0,0.000301,2]
[401077655,1767906646151,-150.44,0.000301,2]
[401077657,1767906646160,-151.0,0.000301,7]
[401077659,1767906646173,-151.0,0.000301,7]
[401077661,1767906646191,-1064.121297,0.000301,2]
[401077663,1767906646203,-152.763427,0.000301,7]
[401077665,1767906646213,-172.705914,0.000301,7]
[401077666,1767906646222,-172.705914,0.000301,7]
[401077668,1767906646233,-172.705914,0.000301,7]
[401077671,1767906646243,-172.705914,0.000301,7]
[401077673,1767906646254,-289.370538,0.000301,7]
[401077674,1767906646264,-289.370538,0.000301,7]
[401077677,1767906646274,-289.370538,0.000301,7]
[401077678,1767906646284,-289.370538,0.000301,7]
[401077680,1767906646293,-522.121584,0.000301,7]
[401077683,1767906646303,-522.121584,0.000301,7]
[401077685,1767906646312,-151.0,0.000301,7]
[401077687,1767906646322,-522.121584,0.000301,7]
[401077689,1767906646332,-151.0,0.000301,7]
[401077691,1767906646341,-522.121584,0.000301,7]
[401077693,1767906646350,-151.0,0.000301,7]
[401077695,1767906646359,-204.572095,0.000301,7]
[401077697,1767906646368,-204.572095,0.000301,7]
[401077699,1767906646378,-204.572095,0.000301,7]
[401077701,1767906646389,-204.572095,0.000301,7]
[401077702,1767906646406,-151.0,0.000301,7]
[401077704,1767906646426,-1439.873322,0.000301,7]
[401077706,1767906646440,-757.340513,0.000301,7]
[401077709,1767906646452,-757.340513,0.000301,7]
[401077710,1767906646461,-1222.595979,0.000301,7]
[401077712,1767906646471,-757.340513,0.000301,7]
[401077714,1767906646481,-1222.595979,0.000301,7]
[401077716,1767906646491,-757.340513,0.000301,7]
[401077718,1767906646501,-1222.595979,0.000301,7]
[401077720,1767906646511,-1222.595979,0.000301,7]
[401077722,1767906646520,-250.0,0.000301,7]
[401077724,1767906646531,-250.4,0.000301,7]
[401077727,1767906646542,-1000.0,0.00030107,14]
[401077728,1767906646552,-3000.0,0.0003011,2]
[401077730,1767906646562,-800.0,0.0003011,2]
[401077732,1767906646572,-3000.0,0.0003012,2]
[401077734,1767906646582,-2451.57074069,0.00030121,2]
[401077736,1767906646592,-3000.0,0.0003013,3]
[401077738,1767906646602,-151.0,0.00030135,7]
[401077741,1767906646613,-264.296067,0.00030135,7]
[401077742,1767906646622,-152.589858,0.00030135,7]
[401077745,1767906646635,-279.016601,0.00030135,7]
[401077747,1767906646646,-279.016601,0.00030135,7]
[401077749,1767906646655,-279.016601,0.00030135,7]
[401077751,1767906646664,-279.016601,0.00030135,7]
[401077753,1767906646675,-151.0,0.00030135,7]
[401077755,1767906646685,-375.065964,0.00030135,7]
[401077757,1767906646694,-375.065964,0.00030135,7]
[401077758,1767906646703,-375.065964,0.00030135,7]
[401077761,1767906646714,-375.065964,0.00030135,7]
[401077763,1767906646724,-10000.0,0.00030135,2]
[401077765,1767906646733,-8151.14383765,0.00030135,3]
[401077767,1767906646744,-1093.27707489,0.00030135,3]
[401077768,1767906646755,-500.0,0.00030135,3]
[401077769,1767906646765,-250.0,0.00030135,3]
[401077770,1767906646775,-2312.83697232,0.00030135,3]
[401077771,1767906646784,-174.61919141,0.00030135,3]
[401077772,1767906646793,-250.0,0.00030135,3]
[401077773,1767906646803,-2398.4119403,0.00030135,3]
[401077774,1767906646812,-250.0,0.00030135,3]
[401077775,1767906646821,-181.08010149,0.00030135,3]
[401077776,1767906646831,-500.0,0.00030135,3]
[401077778,1767906646841,-250.0,0.00030135,3]
[401077780,1767906646850,-2487.15318209,0.00030135,3]
[401077782,1767906646859,-250.0,0.00030135,3]
[401077784,1767906646869,-151.0,0.00030135,3]
[401077786,1767906646878,-500.0,0.00030135,3]
[401077788,1767906646887,-250.0,0.00030135,3]
[401077790,1767906646897,-1500.0,0.00030135,3]
[401077792,1767906646907,-2579.17784983,0.00030135,3]
[401077794,1767906646917,-250.0,0.00030135,3]
[401077796,1767906646927,-500.0,0.00030135,3]
[401077798,1767906646936,-250.0,0.00030135,3]
[401077800,1767906646946,-1500.0,0.00030135,3]
[401077803,1767906646955,-2674.60743027,0.00030135,3]
[401077805,1767906646965,-478.75725327,0.00030135,3]
[401077807,1767906646974,-250.0,0.00030135,3]
[401077809,1767906646984,-151.0,0.00030135,3]
[401077811,1767906646995,-609.47325435,0.00030135,3]
[401077812,1767906647005,-250.0,0.00030135,3]
[401077814,1767906647013,-2773.56790519,0.00030135,3]
[401077816,1767906647023,-1500.0,0.00030135,3]
[401077818,1767906647034,-496.47127164,0.00030135,3]
[401077820,1767906647045,-250.0,0.00030135,3]
[401077822,1767906647055,-151.0,0.00030135,3]
[401077824,1767906647064,-250.0,0.00030135,3]
[401077826,1767906647074,-2876.18991768,0.00030135,3]
[401077828,1767906647083,-1500.0,0.00030135,3]
[401077831,1767906647094,-514.84070869,0.00030135,3]
[401077833,1767906647103,-250.0,0.00030135,3]
[401077835,1767906647112,-151.0,0.00030135,3]
[401077837,1767906647122,-250.0,0.00030135,3]
[401077839,1767906647131,-2982.60894464,0.00030135,3]
[401077841,1767906647141,-1500.0,0.00030135,3]
[401077843,1767906647150,-533.88981491,0.00030135,3]
[401077845,1767906647159,-250.0,0.00030135,3]
[401077847,1767906647169,-151.0,0.00030135,3]
[401077849,1767906647178,-250.0,0.00030135,3]
[401077851,1767906647189,-3092.96547559,0.00030135,3]
[401077853,1767906647198,-1500.0,0.00030135,3]
[401077855,1767906647208,-553.64373807,0.00030135,3]
[401077857,1767906647217,-250.0,0.00030135,3]
[401077859,1767906647226,-151.0,0.00030135,3]
[401077861,1767906647236,-3207.40519818,0.00030135,3]
[401077863,1767906647245,-1500.0,0.00030135,3]
[401077865,1767906647254,-250.0,0.00030135,3]
[401077867,1767906647264,-574.12855637,0.00030135,3]
[401077869,1767906647274,-250.0,0.00030135,3]
[401077871,1767906647283,-151.0,0.00030135,3]
[401077873,1767906647293,-1271.89158797,0.00030135,3]
[401077875,1767906647302,-3326.07919052,0.00030135,3]
[401077877,1767906647312,-305.03589373,0.00030135,3]
[401077878,1767906647321,-595.37131296,0.00030135,3]
[401077881,1767906647333,-250.0,0.00030135,3]
[401077883,1767906647343,-294.36088308,0.00030135,3]
[401077885,1767906647353,-3449.14412057,0.00030135,3]
[401077887,1767906647362,-617.40005154,0.00030135,3]
[401077889,1767906647372,-250.0,0.00030135,3]
[401077891,1767906647382,-3576.76245303,0.00030135,3]
[401077893,1767906647393,-640.24385345,0.00030135,3]
[401077895,1767906647407,-250.0,0.00030135,3]
[401077897,1767906647416,-151.0,0.00030135,3]
[401077899,1767906647426,-3709.10266379,0.00030135,3]
[401077901,1767906647437,-250.0,0.00030135,3]
[401077903,1767906647447,-663.93287602,0.00030135,3]
[401077905,1767906647456,-250.0,0.00030135,3]
[401077907,1767906647466,-151.15345632,0.00030135,3]
[401077909,1767906647476,-3846.33946235,0.00030135,3]
[401077911,1767906647485,-250.0,0.00030135,3]
[401077913,1767906647494,-688.49839244,0.00030135,3]
[401077915,1767906647503,-250.0,0.00030135,3]
[401077917,1767906647512,-151.0,0.00030135,3]
[401077919,1767906647522,-3988.65402246,0.00030135,3]
[401077921,1767906647531,-713.97283296,0.00030135,3]
[401077923,1767906647540,-151.0,0.00030135,3]
[401077925,1767906647550,-250.0,0.00030135,3]
[401077927,1767906647559,-740.38982778,0.00030135,3]
[401077929,1767906647568,-151.0,0.00030135,3]
[401077931,1767906647578,-250.0,0.00030135,3]
[401077932,1767906647587,-767.7842514,0.00030135,3]
[401077933,1767906647597,-151.0,0.00030135,3]
[401077934,1767906647607,-562.68517423,0.00030135,3]
[401077935,1767906647616,-151.0,0.00030135,3]
[401077936,1767906647626,-250.0,0.00030135,3]
[401077937,1767906647635,-151.0,0.00030135,3]
[401077938,1767906647644,-151.0,0.00030135,3]
[401077939,1767906647653,-151.0,0.00030135,3]
[401077940,1767906647662,-151.0,0.00030135,3]
[401077941,1767906647672,-151.0,0.00030135,3]
[401077942,1767906647681,-151.0,0.00030135,3]
[401077943,1767906647690,-151.0,0.00030135,3]
[401077944,1767906647700,-151.0,0.00030135,3]
[401077945,1767906647709,-151.0,0.00030135,3]
[401077946,1767906647718,-151.0,0.00030135,3]
[401077947,1767906647727,-204.04740032,0.00030135,3]
[401077948,1767906647736,-260.81071806,0.00030135,3]
[401077949,1767906647746,-250.0,0.00030135,3]
[401077950,1767906647756,-250.0,0.00030135,3]
[401077951,1767906647765,-250.0,0.00030135,3]
[401077952,1767906647774,-250.0,0.00030135,3]
[401077953,1767906647784,-2764.26601271,0.00030136,2]
[401077954,1767906647793,-8107.71927326,0.00030136,2]
[401077955,1767906647802,-535.54752534,0.00030136,12]
[401077956,1767906647812,-4932.86931879,0.00030136,2]
[401077957,1767906647821,-7770.77730883,0.00030136,2]
[401077958,1767906647830,-191.68238698,0.00030136,7]
[401077959,1767906647840,-151.0,0.00030136,7]
[401077960,1767906647849,-247.71,0.00030136,7]
[401077961,1767906647859,-247.71,0.00030136,7]
[401077962,1767906647868,-247.71,0.00030136,7]
[401077963,1767906647877,-247.71,0.00030136,7]
[401077964,1767906647886,-798.2584231,0.00030136,2]
[401077965,1767906647896,-151.0,0.00030136,7]
[401077966,1767906647905,-151.0,0.00030136,7]
[401077967,1767906647915,-507.45421599,0.00030136,2]
[401077968,1767906647924,-2029.81686397,0.00030136,2]
[401077969,1767906647933,-151.0,0.00030136,7]
[401077970,1767906647942,-151.0,0.00030136,7]
[401077971,1767906647951,-8313.5813767,0.00030136,2]
[401077972,1767906647961,-975.00396658,0.00030136,2]
[401077973,1767906647970,-2394.775269,0.00030136,2]
[401077974,1767906647980,-323.03714281,0.00030136,2]
[401077975,1767906647989,-500.0,0.00030136,2]
[401077976,1767906647999,-278.33212368,0.00030136,2]
[401077977,1767906648016,-1290.85642267,0.00030136,2]
[401077978,1767906648027,-151.0,0.00030136,7]
[401077979,1767906648037,-500.0,0.00030136,7]
[401077980,1767906648047,-500.0,0.00030136,7]
[401077981,1767906648056,-500.0,0.00030136,7]
[401077982,1767906648066,-500.0,0.00030136,7]
[401077983,1767906648076,-500.0,0.00030136,7]
[401077984,1767906648085,-500.0,0.00030136,7]
[401077985,1767906648095,-500.0,0.00030136,7]
[401077987,1767906648105,-500.0,0.00030136,7]
[401077989,1767906648117,-500.0,0.00030136,7]
[401077990,1767906648126,-500.0,0.00030136,7]
[401077991,1767906648135,-500.0,0.00030136,7]
[401077992,1767906648145,-500.0,0.00030136,7]
[401077993,1767906648154,-500.0,0.00030136,7]
[401077994,1767906648163,-151.0,0.00030136,7]
[401077995,1767906648172,-151.0,0.00030136,7]
[401077996,1767906648182,-500.22877989,0.00030136,12]
[401077997,1767906648191,-500.0,0.00030136,15]
[401077998,1767906648201,-500.0,0.00030136,15]
[401077999,1767906648211,-500.0,0.00030136,15]
[401078000,1767906648220,-500.0,0.00030136,15]
[401078001,1767906648230,-500.0,0.00030136,15]
[401078002,1767906648239,-500.0,0.00030136,15]
[401078003,1767906648248,-500.0,0.00030136,15]
[401078004,1767906648258,-500.0,0.00030136,15]
[401078005,1767906648267,-500.0,0.00030136,15]
[401078006,1767906648276,-500.0,0.00030136,15]
[401078007,1767906648285,-500.0,0.00030136,15]
[401078008,1767906648295,-648.8173855,0.00030136,15]
[401078009,1767906648305,-388.092813,0.00030136,7]
[401078010,1767906648316,-388.092813,0.00030136,7]
[401078011,1767906648325,-388.092813,0.00030136,7]
[401078012,1767906648335,-388.092813,0.00030136,7]
[401078013,1767906648344,-151.0,0.00030136,7]
[401078014,1767906648354,-151.0,0.00030136,7]
[401078015,1767906648363,-1000.0,0.00030136,2]
[401078016,1767906648372,-1000.0,0.00030136,2]
[401078017,1767906648381,-1000.0,0.00030136,2]
[401078018,1767906648392,-1000.0,0.00030136,2]
[401078019,1767906648404,-1000.0,0.00030136,2]
[401078020,1767906648414,-1000.0,0.00030136,2]
[401078021,1767906648423,-1000.0,0.00030136,2]
[401078022,1767906648433,-1000.0,0.00030136,2]
[401078023,1767906648443,-1000.0,0.00030136,2]
[401078024,1767906648452,-937.30796305,0.00030136,2]
[401078025,1767906648462,-32832.2194436,0.00030136,2]
[401078026,1767906648472,-500.0,0.00030136,30]
[401078027,1767906648482,-500.0,0.00030136,30]
[401078028,1767906648491,-3896.11585045,0.00030136,2]
[401078029,1767906648500,-500.0,0.00030136,30]
[401078030,1767906648509,-500.0,0.00030136,30]
[401078031,1767906648519,-509.74196328,0.00030136,30]
[401078032,1767906648532,-1060.39390361,0.00030136,2]
[401078033,1767906648541,-4237.33403882,0.00030136,2]
[401078034,1767906648551,-151.0,0.00030136,7]
[401078035,1767906648560,-151.0,0.00030136,7]
[401078036,1767906648570,-157.291642,0.00030136,7]
[401078037,1767906648579,-204.572095,0.00030136,7]
[401078038,1767906648589,-204.572095,0.00030136,7]
[401078039,1767906648598,-204.572095,0.00030136,7]
[401078040,1767906648608,-204.572095,0.00030136,7]
[401078041,1767906648617,-155.515996,0.00030136,7]
[401078042,1767906648627,-1439.873322,0.00030136,7]
[401078043,1767906648636,-500.0,0.00030136,8]
[401078044,1767906648646,-500.0,0.00030136,8]
[401078045,1767906648655,-500.0,0.00030136,8]
[401078046,1767906648665,-500.0,0.00030136,8]
[401078047,1767906648675,-550.88780484,0.00030136,8]
[401078048,1767906648685,-757.340513,0.00030136,7]
[401078049,1767906648694,-757.340513,0.00030136,7]
[401078050,1767906648703,-1222.595979,0.00030136,7]
[401078051,1767906648712,-757.340513,0.00030136,7]
[401078052,1767906648722,-1222.595979,0.00030136,7]
[401078053,1767906648731,-757.340513,0.00030136,7]
[401078054,1767906648740,-1222.595979,0.00030136,7]
[401078055,1767906648749,-248.949077,0.00030136,7]
[401078056,1767906648759,-1222.595979,0.00030136,7]
[401078057,1767906648768,-248.949077,0.00030136,7]
[401078058,1767906648777,-248.949077,0.00030136,7]
[401078059,1767906648786,-248.949077,0.00030136,7]
[401078060,1767906648795,-8345.5,0.00030136,3]
[401078061,1767906648806,-8345.5,0.00030136,3]
[401078062,1767906648815,-8345.5,0.00030136,3]
[401078063,1767906648825,-8345.5,0.00030136,3]
[401078064,1767906648834,-8345.5,0.00030136,3]
[401078065,1767906648843,-8345.5,0.00030136,3]
[401078066,1767906648852,-8345.5,0.00030136,3]
[401078067,1767906648862,-8345.5,0.00030136,3]
[401078068,1767906648875,-8345.5,0.00030136,3]
[401078069,1767906648886,-8345.5,0.00030136,3]
[401078070,1767906648895,-8345.5,0.00030136,3]
[401078071,1767906648905,-8345.5,0.00030136,3]
[401078072,1767906648914,-8345.5,0.00030136,3]
[401078073,1767906648924,-8345.5,0.00030136,3]
[401078074,1767906648933,-8345.5,0.00030136,3]
[401078075,1767906648943,-8345.5,0.00030136,3]
[401078076,1767906648953,-8345.5,0.00030136,3]
[401078077,1767906648962,-8345.5,0.00030136,3]
[401078078,1767906648972,-8345.5,0.00030136,3]
[401078079,1767906648982,-8345.5,0.00030136,3]
[401078080,1767906648991,-8345.5,0.00030136,3]
[401078081,1767906649000,-8345.5,0.00030136,3]
[401078082,1767906649010,-8345.5,0.00030136,3]
[401078083,1767906649020,-8345.55015835,0.00030136,3]
[401078084,1767906649029,-1803.46,0.00030136,6]
[401078085,1767906649039,-151.0,0.00030136,7]
[401078086,1767906649048,-151.0,0.00030136,7]
[401078087,1767906649058,-151.0,0.00030136,7]
[401078088,1767906649068,-212.874628,0.00030136,7]
[401078089,1767906649078,-622.20825,0.00030136,7]
[401078090,1767906649087,-1359.86,0.00030136,21]
[401078091,1767906649096,-622.20825,0.00030136,7]
[401078092,1767906649106,-1359.86,0.00030136,21]
[401078093,1767906649115,-1359.86,0.00030136,21]
[401078094,1767906649124,-1359.86,0.00030136,21]
[401078095,1767906649133,-1359.86,0.00030136,21]
[401078096,1767906649142,-1359.86,0.00030136,21]
[401078097,1767906649152,-1359.86,0.00030136,21]
[401078098,1767906649161,-622.20825,0.00030136,7]
[401078099,1767906649171,-1359.86,0.00030136,21]
[401078100,1767906649180,-1359.86,0.00030136,21]
[401078101,1767906649190,-1359.86,0.00030136,21]
[401078102,1767906649200,-1359.86,0.00030136,21]
[401078103,1767906649210,-1359.86,0.00030136,21]
[401078104,1767906649221,-1359.86,0.00030136,21]
[401078105,1767906649231,-622.20825,0.00030136,7]
[401078106,1767906649240,-1359.86,0.00030136,21]
[401078107,1767906649250,-1359.86,0.00030136,21]
[401078108,1767906649259,-1359.86,0.00030136,21]
[401078109,1767906649269,-512.70301219,0.00030136,60]
[401078110,1767906649278,-1359.86,0.00030136,21]
[401078111,1767906649288,-1359.86,0.00030136,21]
[401078112,1767906649298,-1359.86,0.00030136,21]
[401078113,1767906649307,-1359.86,0.00030136,21]
[401078114,1767906649317,-1359.86,0.00030136,21]
[401078115,1767906649326,-1359.86,0.00030136,21]
[401078116,1767906649335,-1359.86,0.00030136,21]
[401078117,1767906649346,-1359.91966647,0.00030136,21]
[401078118,1767906649355,-303.930909,0.00030136,7]
[401078119,1767906649364,-4562.52085599,0.00030136,2]
[401078120,1767906649373,-238.415405,0.00030136,7]
[401078121,1767906649383,-303.930909,0.00030136,7]
[401078122,1767906649392,-303.930909,0.00030136,7]
[401078123,1767906649404,-303.930909,0.00030136,7]
[401078124,1767906649578,-151.0,0.00030136,7]
[401078125,1767906649589,-654.48073631,0.00030136,2]
[401078126,1767906649599,-178.75645,0.00030136,7]
[401078127,1767906649608,-2617.92294526,0.00030136,2]
[401078128,1767906649618,-151.0,0.00030136,7]
[401078129,1767906649627,-5884.4363002,0.00030136,2]
[401078130,1767906649638,-151.0,0.00030136,2]
[401078131,1767906649648,-151.0,0.00030136,7]
[401078132,1767906649657,-500.0,0.00030136,30]
[401078133,1767906649666,-500.0,0.00030136,30]
[401078134,1767906649675,-500.0,0.00030136,30]
[401078135,1767906649684,-500.0,0.00030136,30]
[401078136,1767906649694,-500.0,0.00030136,30]
[401078137,1767906649703,-500.0,0.00030136,30]
[401078138,1767906649713,-500.0,0.00030136,30]
[401078139,1767906649722,-500.0,0.00030136,30]
[401078140,1767906649731,-151.0,0.00030136,7]
[401078141,1767906649741,-500.0,0.00030136,30]
[401078142,1767906649750,-500.0,0.00030136,30]
[401078143,1767906649760,-500.0,0.00030136,30]
[401078144,1767906649769,-500.0,0.00030136,30]
[401078145,1767906649778,-500.0,0.00030136,30]
[401078146,1767906649788,-500.0,0.00030136,30]
[401078147,1767906649797,-601.4235728,0.00030136,30]
[401078148,1767906649806,-1000.0,0.00030136,14]
[401078149,1767906649816,-151.858704,0.00030136,7]
[401078150,1767906649825,-2391.210697,0.00030136,7]
[401078151,1767906649835,-2391.210697,0.00030136,7]
[401078152,1767906649844,-2391.210697,0.00030136,7]
[401078153,1767906649853,-151.0,0.00030136,7]
[401078154,1767906649863,-2391.210697,0.00030136,7]
[401078155,1767906649872,-151.0,0.00030136,7]
[401078156,1767906649881,-1000.0,0.00030136,2]
[401078157,1767906649891,-1000.0,0.00030136,2]
[401078158,1767906649900,-1000.0,0.00030136,2]
[401078159,1767906649909,-1000.0,0.00030136,2]
[401078160,1767906649919,-1000.0,0.00030136,2]
[401078161,1767906649928,-1000.0,0.00030136,2]
[401078162,1767906649938,-1000.0,0.00030136,2]
[401078163,1767906649947,-1000.0,0.00030136,2]
[401078164,1767906649956,-1000.0,0.00030136,2]
[401078165,1767906649966,-1000.0,0.00030136,2]
[401078166,1767906649975,-1000.0,0.00030136,2]
[401078167,1767906649984,-1000.0,0.00030136,2]
[401078168,1767906649993,-584.62852237,0.00030136,2]
[401078169,1767906650003,-151.0,0.00030136,7]
[401078170,1767906650013,-151.0,0.00030136,7]
[401078171,1767906650024,-191.094302,0.00030136,7]
[401078172,1767906650034,-151.0,0.00030136,7]
[401078173,1767906650044,-151.0,0.00030136,7]
[401078174,1767906650054,-25.14183908,0.00030136,7]
[401078175,1767906650192,-272.71,0.00016438,2]
[401078176,1767906650204,-321.64152189,0.00016438,2]
[401078177,1767906650215,-165.95246292,0.00030136,7]
[401078178,1767906650224,-341.324064,0.00030136,7]
[401078179,1767906650234,-151.0,0.00030136,7]
[401078180,1767906650243,-151.0,0.00030136,7]
[401078181,1767906650252,-191.094302,0.00030136,7]
[401078182,1767906650261,-341.324064,0.00030136,7]
[401078183,1767906650271,-151.0,0.00030136,7]
[401078184,1767906650280,-191.094302,0.00030136,7]
[401078185,1767906650290,-182.749737,0.00030136,7]
[401078186,1767906650299,-341.324064,0.00030136,7]
[401078187,1767906650308,-182.749737,0.00030136,7]
[401078188,1767906650318,-227.192077,0.00030136,7]
[401078189,1767906650326,-341.324064,0.00030136,7]
[401078190,1767906650336,-182.749737,0.00030136,7]
[401078191,1767906650345,-182.749737,0.00030136,7]
[401078192,1767906650354,-151.0,0.00030136,14]
[401078193,1767906650364,-1549.23,0.00030137,2]
[401078194,1767906650373,-650.0,0.00030137,5]
[401078195,1767906650383,-650.0,0.00030137,5]
[401078196,1767906650392,-1013.0,0.00030137,7]
[401078197,1767906650404,-3000.0,0.0003014,3]
[401078198,1767906650415,-3000.0,0.0003015,3]
[401078199,1767906650424,-1327.87996835,0.00030154,2]
[401078200,1767906650436,-1050.12003165,0.00030154,2]
[401078201,1767906650446,-3000.0,0.0003016,3]
[401078202,1767906650455,-376.9815269,0.00030164,30]
[401078203,1767906650464,-376.9815269,0.00030164,30]
[401078204,1767906650474,-376.9815269,0.00030164,30]
[401078205,1767906650483,-3000.0,0.0003017,3]
[401078206,1767906650493,-3000.0,0.0003018,3]
[401078207,1767906650502,-2572.72666526,0.0003019,3]
[401078208,1767906650658,-260.9245051,0.00011058,2]
[401078209,1767906650667,-9014.03900012,0.00014093,2]
[401078260,1767907693764,156.18,8.325e-05,2]
[401078261,1767907694171,187.42,8.88e-05,2]
[401078263,1767907695932,155.0,5e-05,2]
[401078282,1767907763641,186.34,8.209e-05,2]
[401078283,1767907764048,232.93,8.795e-05,2]
[401078307,1767907831924,-279.51,9.382e-05,2]
[401078308,1767907831934,-14.61961054,9.382e-05,2]
[401078309,1767907831946,-536.38038946,9.382e-05,2]
[401078310,1767907831957,-326.1,9.968e-05,2]
[401078311,1767907831967,-187.3181931,0.0001,2]
[401078312,1767907831976,-28.29057886,0.00010058,2]
[401078313,1767907831989,-271.70942114,0.00010058,2]
[401078314,1767907832001,-145.45561304,0.00010058,2]
[401078451,1767907834966,192.29,8.722e-05,2]
[401078452,1767907838005,-240.36,9.345e-05,2]
[401078453,1767907838014,-288.44,9.968e-05,2]
[401078454,1767907838027,-152.25199638,0.00010058,2]
[401078455,1767907838036,-2017.83999029,0.00010571,2]
[401078456,1767907838045,-336.51,0.0001059,2]
[401078457,1767907838054,-4780.9743399,0.00010888,2]
[401078458,1767907838064,-265.179,0.00010953,2]
[401078459,1767907838073,-1000000.0,0.00011076,2]
[401078460,1767907838082,-300.0,0.00011124,2]
[401078461,1767907838091,-50000.0,0.00011125,2]
[401078462,1767907838100,-500.0,0.00011126,2]
[401078463,1767907838109,-235.39284337,0.00011126,2]
[401078464,1767907838118,-4009.7530596,0.00011163,2]
[401078465,1767907838127,-384.58,0.00011213,2]
[401078466,1767907838136,-500.0,0.00011263,2]
[401078467,1767907838145,-500.0,0.000114,2]
[401078468,1767907838156,-300.0,0.000114,2]
[401078469,1767907838165,-300.0,0.000114,2]
[401078470,1767907838175,-300.0,0.000114,2]
[401078471,1767907838184,-300.0,0.000114,2]
[401078472,1767907838193,-300.0,0.000114,2]
[401078473,1767907838203,-300.0,0.000114,2]
[401078474,1767907838212,-300.0,0.000114,2]
[401078475,1767907838222,-300.0,0.000114,2]
[401078476,1767907838231,-300.0,0.000114,2]
[401078477,1767907838240,-300.0,0.000114,2]
[401078478,1767907838249,-300.0,0.000114,2]
[401078479,1767907838259,-300.0,0.000114,2]
[401078480,1767907838268,-300.0,0.000114,2]
[401078481,1767907838277,-300.0,0.000114,2]
[401078482,1767907838287,-300.0,0.000114,2]